fUST/lending_fUST_20240717
["ID","MTS","AMOUNT","RATE_DAILY","PERIOD"]
[332464179,1721207494934,-500.0,0.00023013,2]
[332464180,1721207494944,-500.0,0.00023013,2]
[332464181,1721207494953,-500.0,0.00023013,2]
[332464182,1721207494963,-500.0,0.00023013,2]
[332464183,1721207494972,-579.54227471,0.00023013,2]
[332464184,1721207494981,-500.0,0.00023013,2]
[332464185,1721207494991,-500.0,0.00023013,2]
[332464186,1721207495000,-500.0,0.00023013,2]
[332464187,1721207495009,-500.0,0.00023013,2]
[332464188,1721207495018,-451.89866609,0.00023013,2]
[332464189,1721207495027,-509.6415422,0.00023013,2]
[332464190,1721207495037,-500.0,0.00023013,2]
[332464191,1721207495047,-500.0,0.00023013,2]
[332464192,1721207495056,-500.0,0.00023013,2]
[332464193,1721207495065,-1773.4,0.00023013,2]
[332464194,1721207495074,-500.0,0.00023013,2]
[332464195,1721207495083,-500.0,0.00023013,2]
[332464196,1721207495092,-500.0,0.00023013,2]
[332464197,1721207495101,-500.0,0.00023013,2]
[332464198,1721207495110,-500.0,0.00023013,2]
[332464199,1721207495119,-622.94870663,0.00023013,2]
[332464200,1721207495129,-500.0,0.00023013,2]
[332464201,1721207495138,-393.39,0.00023013,2]
[332464202,1721207495147,-500.0,0.00023013,2]
[332464203,1721207495157,-729.97,0.00023013,2]
[332464204,1721207495167,-500.0,0.00023013,2]
[332464205,1721207495176,-500.0,0.00023013,2]
[332464206,1721207495186,-500.0,0.00023013,2]
[332464207,1721207495195,-477.42,0.00023013,2]
[332464208,1721207495204,-2448.75,0.00023013,2]
[332464209,1721207495213,-657.29,0.00023013,2]
[332464210,1721207495223,-500.0,0.00023013,2]
[332464211,1721207495232,-500.0,0.00023013,2]
[332464212,1721207495241,-500.0,0.00023013,2]
[332464213,1721207495251,-636.31,0.00023013,2]
[332464214,1721207495260,-435.71,0.00023013,2]
[332464215,1721207495269,-500.0,0.00023013,2]
[332464216,1721207495278,-500.0,0.00023013,2]
[332464217,1721207495288,-500.0,0.00023013,2]
[332464218,1721207495299,-500.0,0.00023013,2]
[332464219,1721207495308,-500.0,0.00023013,2]
[332464220,1721207495317,-500.0,0.00023013,2]
[332464221,1721207495326,-500.0,0.00023013,2]
[332464222,1721207495335,-552.95237398,0.00023013,2]
[332464223,1721207495345,-500.0,0.00023013,2]
[332464224,1721207495354,-500.0,0.00023013,2]
[332464225,1721207495364,-500.0,0.00023013,2]
[332464226,1721207495374,-500.0,0.00023013,2]
[332464227,1721207495384,-401.35230351,0.00023013,2]
[332464228,1721207495394,-500.0,0.00023013,2]
[332464229,1721207495403,-500.0,0.00023013,2]
[332464230,1721207495412,-500.0,0.00023013,2]
[332464231,1721207495422,-271.9,0.00023013,2]
[332464232,1721207495431,-500.0,0.00023013,2]
[332464233,1721207495440,-500.0,0.00023013,2]
[332464234,1721207495449,-500.0,0.00023013,2]
[332464235,1721207495458,-230.98,0.00023013,2]
[332464236,1721207495467,-500.0,0.00023013,2]
[332464237,1721207495476,-500.0,0.00023013,2]
[332464238,1721207495485,-500.0,0.00023013,2]
[332464239,1721207495494,-500.0,0.00023013,2]
[332464240,1721207495503,-500.0,0.00023013,2]
[332464241,1721207495512,-500.0,0.00023013,2]
[332464242,1721207495521,-500.0,0.00023013,2]
[332464243,1721207495529,-1010.93,0.00023013,2]
[332464244,1721207495539,-500.0,0.00023013,2]
[332464245,1721207495550,-500.0,0.00023013,2]
[332464246,1721207495558,-591.50748349,0.00023013,2]
[332464247,1721207495569,-500.0,0.00023013,2]
[332464248,1721207495578,-500.0,0.00023013,2]
[332464249,1721207495707,-500.0,0.00023013,2]
[332464250,1721207495716,-500.0,0.00023013,2]
[332464251,1721207495725,-500.0,0.00023013,2]
[332464252,1721207495734,-500.0,0.00023013,2]
[332464253,1721207495743,-500.0,0.00023013,2]
[332464254,1721207495752,-500.0,0.00023013,2]
[332464255,1721207495761,-500.0,0.00023013,2]
[332464256,1721207495770,-500.0,0.00023013,2]
[332464257,1721207495779,-409.91614392,0.00023013,2]
[332464258,1721207495788,-500.0,0.00023013,2]
[332464259,1721207495797,-500.0,0.00023013,2]
[332464260,1721207495806,-192.58,0.00023013,2]
[332464261,1721207495815,-646.15,0.00023013,2]
[332464262,1721207495828,-647.73788572,0.00023013,2]
[332464263,1721207495837,-500.0,0.00023013,2]
[332464264,1721207495846,-1406.96,0.00023013,2]
[332464265,1721207495855,-500.0,0.00023013,2]
[332464266,1721207495863,-604.2,0.00023013,2]
[332464267,1721207495873,-375.18780674,0.00023013,2]
[332464268,1721207495882,-500.0,0.00023013,2]
[332464269,1721207495891,-245.99,0.00023013,2]
[332464270,1721207495901,-500.0,0.00023013,2]
[332464271,1721207495910,-190.02,0.00023013,2]
[332464272,1721207495919,-500.0,0.00023013,2]
[332464273,1721207495928,-500.0,0.00023013,2]
[332464274,1721207495937,-500.0,0.00023013,2]
[332464275,1721207495946,-500.0,0.00023013,2]
[332464276,1721207495956,-236.86,0.00023013,2]
[332464277,1721207495965,-500.0,0.00023013,2]
[332464278,1721207495974,-500.0,0.00023013,2]
[332464279,1721207495983,-534.11,0.00023013,2]
[332464280,1721207495992,-403.79854803,0.00023013,2]
[332464281,1721207496001,-500.0,0.00023013,2]
[332464282,1721207496010,-500.0,0.00023013,2]
[332464283,1721207496019,-500.0,0.00023013,2]
[332464284,1721207496028,-500.0,0.00023013,2]
[332464285,1721207496037,-500.0,0.00023013,2]
[332464286,1721207496047,-500.0,0.00023013,2]
[332464287,1721207496056,-500.0,0.00023013,2]
[332464288,1721207496065,-500.0,0.00023013,2]
[332464289,1721207496075,-500.0,0.00023013,2]
[332464290,1721207496084,-500.0,0.00023013,2]
[332464291,1721207496093,-500.0,0.00023013,2]
[332464292,1721207496102,-500.0,0.00023013,2]
[332464293,1721207496111,-500.0,0.00023013,2]
[332464294,1721207496120,-500.0,0.00023013,2]
[332464295,1721207496129,-500.0,0.00023013,2]
[332464296,1721207496138,-500.0,0.00023013,2]
[332464297,1721207496148,-500.0,0.00023013,2]
[332464298,1721207496156,-500.0,0.00023013,2]
[332464299,1721207496165,-500.0,0.00023013,2]
[332464300,1721207496174,-500.0,0.00023013,2]
[332464301,1721207496183,-500.0,0.00023013,2]
[332464302,1721207496193,-500.0,0.00023013,2]
[332464303,1721207496202,-500.0,0.00023013,2]
[332464304,1721207496211,-500.0,0.00023013,2]
[332464305,1721207496219,-500.0,0.00023013,2]
[332464306,1721207496229,-500.0,0.00023013,2]
[332464307,1721207496239,-560.11,0.00023013,2]
[332464308,1721207496247,-627.21135211,0.00023013,2]
[332464309,1721207496257,-500.0,0.00023013,2]
[332464310,1721207496266,-500.0,0.00023013,2]
[332464311,1721207496276,-500.0,0.00023013,2]
[332464312,1721207496286,-500.0,0.00023013,2]
[332464313,1721207496295,-500.0,0.00023013,2]
[332464314,1721207496305,-500.0,0.00023013,2]
[332464315,1721207496314,-500.0,0.00023013,2]
[332464316,1721207496324,-500.0,0.00023013,2]
[332464317,1721207496334,-500.0,0.00023013,2]
[332464318,1721207496343,-500.0,0.00023013,2]
[332464319,1721207496352,-500.0,0.00023013,2]
[332464320,1721207496361,-559.58,0.00023013,2]
[332464321,1721207496370,-586.17,0.00023013,2]
[332464322,1721207496379,-500.0,0.00023013,2]
[332464323,1721207496389,-500.0,0.00023013,2]
[332464324,1721207496398,-481.24,0.00023013,2]
[332464325,1721207496407,-500.0,0.00023013,2]
[332464326,1721207496417,-272.61,0.00023013,2]
[332464327,1721207496426,-500.0,0.00023013,2]
[332464328,1721207496435,-500.0,0.00023013,2]
[332464329,1721207496444,-500.0,0.00023013,2]
[332464330,1721207496454,-500.0,0.00023013,2]
[332464331,1721207496463,-514.4140487,0.00023013,2]
[332464332,1721207496472,-500.0,0.00023013,2]
[332464333,1721207496481,-500.0,0.00023013,2]
[332464334,1721207496490,-500.0,0.00023013,2]
[332464335,1721207496499,-500.0,0.00023013,2]
[332464336,1721207496507,-500.0,0.00023013,2]
[332464337,1721207496516,-500.0,0.00023013,2]
[332464338,1721207496525,-500.0,0.00023013,2]
[332464339,1721207496534,-500.0,0.00023013,2]
[332464340,1721207496544,-500.0,0.00023013,2]
[332464341,1721207496554,-604.37,0.00023013,2]
[332464342,1721207496563,-500.0,0.00023013,2]
[332464343,1721207496572,-500.0,0.00023013,2]
[332464344,1721207496581,-500.0,0.00023013,2]
[332464345,1721207496590,-500.0,0.00023013,2]
[332464346,1721207496599,-500.0,0.00023013,2]
[332464347,1721207496607,-500.0,0.00023013,2]
[332464348,1721207496616,-500.0,0.00023013,2]
[332464349,1721207496625,-500.0,0.00023013,2]
[332464350,1721207496634,-500.0,0.00023013,2]
[332464351,1721207496643,-500.0,0.00023013,2]
[332464352,1721207496652,-500.0,0.00023013,2]
[332464353,1721207496661,-500.0,0.00023013,2]
[332464354,1721207496670,-500.0,0.00023013,2]
[332464355,1721207496679,-516.66677474,0.00023013,2]
[332464356,1721207496688,-500.0,0.00023013,2]
[332464357,1721207496698,-500.0,0.00023013,2]
[332464358,1721207496707,-500.0,0.00023013,2]
[332464359,1721207496716,-500.0,0.00023013,2]
[332464360,1721207496726,-236.5791393,0.00023013,2]
[332464361,1721207496735,-500.0,0.00023013,2]
[332464362,1721207496744,-500.0,0.00023013,2]
[332464363,1721207496753,-500.0,0.00023013,2]
[332464364,1721207496762,-453.46209145,0.00023013,2]
[332464365,1721207496772,-326.83,0.00023013,2]
[332464366,1721207496781,-551.44782475,0.00023013,2]
[332464367,1721207496790,-500.0,0.00023013,2]
[332464368,1721207496800,-500.0,0.00023013,2]
[332464369,1721207496809,-500.0,0.00023013,2]
[332464370,1721207496818,-500.0,0.00023013,2]
[332464371,1721207496831,-500.0,0.00023013,2]
[332464372,1721207496840,-513.22610041,0.00023013,2]
[332464373,1721207496849,-500.0,0.00023013,2]
[332464374,1721207496858,-216.61352034,0.00023013,2]
[332464375,1721207496868,-503.18799374,0.00023013,2]
[332464376,1721207496877,-500.0,0.00023013,2]
[332464377,1721207496885,-500.0,0.00023013,2]
[332464378,1721207496895,-500.0,0.00023013,2]
[332464379,1721207496904,-500.0,0.00023013,2]
[332464380,1721207496913,-500.0,0.00023013,2]
[332464381,1721207496922,-500.0,0.00023013,2]
[332464382,1721207496932,-500.0,0.00023013,2]
[332464383,1721207496941,-500.0,0.00023013,2]
[332464384,1721207496950,-500.0,0.00023013,2]
[332464385,1721207496959,-500.0,0.00023013,2]
[332464386,1721207496969,-500.0,0.00023013,2]
[332464387,1721207496978,-500.0,0.00023013,2]
[332464388,1721207496988,-500.0,0.00023013,2]
[332464389,1721207496997,-500.0,0.00023013,2]
[332464390,1721207497006,-500.0,0.00023013,2]
[332464391,1721207497015,-500.0,0.00023013,2]
[332464392,1721207497025,-500.0,0.00023013,2]
[332464393,1721207497033,-500.0,0.00023013,2]
[332464394,1721207497043,-500.0,0.00023013,2]
[332464395,1721207497054,-500.0,0.00023013,2]
[332464396,1721207497062,-500.0,0.00023013,2]
[332464397,1721207497071,-500.0,0.00023013,2]
[332464398,1721207497080,-500.0,0.00023013,2]
[332464399,1721207497089,-500.0,0.00023013,2]
[332464400,1721207497098,-531.03127255,0.00023013,2]
[332464401,1721207497107,-223.92961934,0.00023013,2]
[332464402,1721207497116,-274.5715612,0.00023013,2]
[332464403,1721207497125,-500.0,0.00023013,2]
[332464404,1721207497136,-500.0,0.00023013,2]
[332464405,1721207497145,-563.3932499,0.00023013,2]
[332464406,1721207497156,-372.43426133,0.00023013,2]
[332464407,1721207497165,-500.0,0.00023013,2]
[332464408,1721207497175,-4425.24,0.00023013,2]
[332464409,1721207497185,-2280.85,0.00023013,2]
[332464410,1721207497195,-500.0,0.00023013,2]
[332464411,1721207497206,-506.46369505,0.00023013,2]
[332464412,1721207497219,-510.81173505,0.00023013,2]
[332464413,1721207497230,-357.17494322,0.00023013,2]
[332464414,1721207497240,-514.92096902,0.00023013,2]
[332464415,1721207497251,-575.95550292,0.00023013,2]
[332464416,1721207497260,-336.69380588,0.00023013,2]
[332464417,1721207497269,-507.91840719,0.00023013,2]
[332464418,1721207497278,-507.05397536,0.00023013,2]
[332464419,1721207497288,-500.0,0.00023013,2]
[332464420,1721207497298,-500.0,0.00023013,2]
[332464421,1721207497308,-297.95977528,0.00023013,2]
[332464422,1721207497318,-500.0,0.00023013,2]
[332464423,1721207497327,-509.06779164,0.00023013,2]
[332464424,1721207497339,-500.0,0.00023013,2]
[332464425,1721207497348,-571.48435022,0.00023013,2]
[332464426,1721207497358,-502.94551921,0.00023013,2]
[332464427,1721207497367,-500.0,0.00023013,2]
[332464428,1721207497377,-502.21040076,0.00023013,2]
[332464429,1721207497387,-500.0,0.00023013,2]
[332464430,1721207497397,-508.04930963,0.00023013,2]
[332464431,1721207497407,-518.99969814,0.00023013,2]
[332464432,1721207497416,-500.0,0.00023013,2]
[332464433,1721207497426,-347.3504491,0.00023013,2]
[332464434,1721207497438,-504.15613984,0.00023013,2]
[332464435,1721207497449,-507.62989551,0.00023013,2]
[332464436,1721207497458,-500.0,0.00023013,2]
[332464437,1721207497467,-510.45873676,0.00023013,2]
[332464438,1721207497476,-500.0,0.00023013,2]
[332464439,1721207497486,-500.0,0.00023013,2]
[332464440,1721207497495,-500.0,0.00023013,2]
[332464441,1721207497506,-584.15921346,0.00023013,2]
[332464442,1721207497516,-257.72,0.00023013,2]
[332464443,1721207497527,-500.0,0.00023013,2]
[332464444,1721207497537,-506.72300908,0.00023013,2]
[332464445,1721207497547,-500.0,0.00023013,2]
[332464446,1721207497560,-500.0,0.00023013,2]
[332464447,1721207497569,-500.0,0.00023013,2]
[332464448,1721207497578,-500.0,0.00023013,2]
[332464449,1721207497587,-500.0,0.00023013,2]
[332464450,1721207497596,-500.0,0.00023013,2]
[332464451,1721207497605,-502.58002045,0.00023013,2]
[332464452,1721207497615,-500.0,0.00023013,2]
[332464453,1721207497625,-500.0,0.00023013,2]
[332464454,1721207497636,-500.0,0.00023013,2]
[332464455,1721207497646,-500.0,0.00023013,2]
[332464456,1721207497656,-513.01150334,0.00023013,2]
[332464457,1721207497665,-500.0,0.00023013,2]
[332464458,1721207497674,-503.59361011,0.00023013,2]
[332464459,1721207497683,-564.6017359,0.00023013,2]
[332464460,1721207497692,-505.70265113,0.00023013,2]
[332464461,1721207497702,-504.88203304,0.00023013,2]
[332464462,1721207497711,-597.22306204,0.00023013,2]
[332464463,1721207497720,-500.0,0.00023013,2]
[332464464,1721207497730,-502.88204118,0.00023013,2]
[332464465,1721207497740,-644.35211804,0.00023013,2]
[332464466,1721207497750,-508.24034269,0.00023013,2]
[332464467,1721207497761,-334.73409677,0.00023013,2]
[332464468,1721207497770,-504.61317538,0.00023013,2]
[332464469,1721207497780,-530.67342608,0.00023013,2]
[332464470,1721207497789,-500.0,0.00023013,2]
[332464471,1721207497803,-500.0,0.00023013,2]
[332464472,1721207497815,-510.88906996,0.00023013,2]
[332464473,1721207497827,-500.0,0.00023013,2]
[332464474,1721207497838,-500.0,0.00023013,2]
[332464475,1721207497847,-500.0,0.00023013,2]
[332464476,1721207497857,-501.01022913,0.00023013,2]
[332464477,1721207497867,-500.0,0.00023013,2]
[332464478,1721207497876,-500.0,0.00023013,2]
[332464479,1721207497887,-505.78177455,0.00023013,2]
[332464480,1721207497897,-500.0,0.00023013,2]
[332464481,1721207497909,-472.82594842,0.00023013,2]
[332464482,1721207497918,-505.83036881,0.00023013,2]
[332464483,1721207497927,-500.0,0.00023013,2]
[332464484,1721207497937,-500.0,0.00023013,2]
[332464485,1721207497947,-500.0,0.00023013,2]
[332464486,1721207497956,-506.91,0.00023013,2]
[332464487,1721207497967,-500.0,0.00023013,2]
[332464488,1721207497977,-500.0,0.00023013,2]
[332464489,1721207497987,-500.0,0.00023013,2]
[332464490,1721207497997,-160.00395131,0.00023013,2]
[332464491,1721207498007,-508.8507944,0.00023013,2]
[332464492,1721207498016,-500.0,0.00023013,2]
[332464493,1721207498026,-500.0,0.00023013,2]
[332464494,1721207498035,-500.0,0.00023013,2]
[332464495,1721207498045,-500.0,0.00023013,2]
[332464496,1721207498058,-238.05,0.00023013,2]
[332464497,1721207498067,-2106.49,0.00023013,2]
[332464498,1721207498077,-500.0,0.00023013,2]
[332464499,1721207498086,-569.02,0.00023013,2]
[332464500,1721207498096,-500.0,0.00023013,2]
[332464501,1721207498105,-500.0,0.00023013,2]
[332464502,1721207498115,-577.13763981,0.00023013,2]
[332464503,1721207498124,-598.29583107,0.00023013,2]
[332464504,1721207498134,-291.83,0.00023013,2]
[332464505,1721207498144,-500.0,0.00023013,2]
[332464506,1721207498153,-500.0,0.00023013,2]
[332464507,1721207498271,-519.99142052,0.00023013,2]
[332464508,1721207498290,-234.94,0.00023013,2]
[332464509,1721207498303,-500.0,0.00023013,2]
[332464510,1721207498312,-606.49,0.00023013,2]
[332464511,1721207498321,-500.0,0.00023013,2]
[332464512,1721207498331,-524.06347381,0.00023013,2]
[332464513,1721207498340,-506.09091708,0.00023013,2]
[332464514,1721207498350,-500.0,0.00023013,2]
[332464515,1721207498360,-500.0,0.00023013,2]
[332464516,1721207498370,-500.0,0.00023013,2]
[332464517,1721207498380,-500.0,0.00023013,2]
[332464518,1721207498390,-500.0,0.00023013,2]
[332464519,1721207498401,-500.0,0.00023013,2]
[332464520,1721207498411,-2237.19,0.00023013,2]
[332464521,1721207498420,-500.0,0.00023013,2]
[332464522,1721207498430,-500.0,0.00023013,2]
[332464523,1721207498439,-500.0,0.00023013,2]
[332464524,1721207498450,-500.0,0.00023013,2]
[332464525,1721207498459,-237.19,0.00023013,2]
[332464526,1721207498469,-500.0,0.00023013,2]
[332464527,1721207498478,-500.0,0.00023013,2]
[332464528,1721207498488,-499.18,0.00023013,2]
[332464529,1721207498497,-156.88,0.00023013,2]
[332464530,1721207498507,-599.02,0.00023013,2]
[332464531,1721207498516,-155.72,0.00023013,2]
[332464532,1721207498527,-500.0,0.00023013,2]
[332464533,1721207498537,-500.0,0.00023013,2]
[332464534,1721207498546,-500.0,0.00023013,2]
[332464535,1721207498563,-500.0,0.00023013,2]
[332464536,1721207498573,-500.0,0.00023013,2]
[332464537,1721207498583,-500.0,0.00023013,2]
[332464538,1721207498593,-500.0,0.00023013,2]
[332464539,1721207498603,-500.0,0.00023013,2]
[332464540,1721207498612,-308.3192767,0.00023013,2]
[332464541,1721207498623,-500.0,0.00023013,2]
[332464542,1721207498633,-500.0,0.00023013,2]
[332464543,1721207498643,-500.0,0.00023013,2]
[332464544,1721207498652,-617.49,0.00023013,2]
[332464545,1721207498662,-500.0,0.00023013,2]
[332464546,1721207498672,-500.0,0.00023013,2]
[332464547,1721207498682,-500.0,0.00023013,2]
[332464548,1721207498691,-500.0,0.00023013,2]
[332464549,1721207498701,-500.0,0.00023013,2]
[332464550,1721207498710,-182.65953777,0.00023013,2]
[332464551,1721207498719,-627.93553109,0.00023013,2]
[332464552,1721207498728,-500.0,0.00023013,2]
[332464553,1721207498738,-500.0,0.00023013,2]
[332464554,1721207498747,-500.0,0.00023013,2]
[332464555,1721207498756,-500.0,0.00023013,2]
[332464556,1721207498765,-500.0,0.00023013,2]
[332464557,1721207498775,-500.0,0.00023013,2]
[332464558,1721207498785,-500.0,0.00023013,2]
[332464559,1721207498795,-464.85,0.00023013,2]
[332464560,1721207498809,-500.0,0.00023013,2]
[332464561,1721207498819,-500.0,0.00023013,2]
[332464562,1721207498832,-500.0,0.00023013,2]
[332464563,1721207498842,-520.23,0.00023013,2]
[332464564,1721207498852,-586.47812311,0.00023013,2]
[332464565,1721207498862,-500.0,0.00023013,2]
[332464566,1721207498872,-500.0,0.00023013,2]
[332464567,1721207498881,-500.0,0.00023013,2]
[332464568,1721207498891,-500.0,0.00023013,2]
[332464569,1721207498902,-769.18,0.00023013,2]
[332464570,1721207498912,-483.58,0.00023013,2]
[332464571,1721207498922,-500.0,0.00023013,2]
[332464572,1721207498932,-500.0,0.00023013,2]
[332464573,1721207498942,-937.8,0.00023013,2]
[332464574,1721207498952,-500.0,0.00023013,2]
[332464575,1721207498962,-500.0,0.00023013,2]
[332464576,1721207498971,-500.0,0.00023013,2]
[332464577,1721207498980,-500.0,0.00023013,2]
[332464578,1721207498990,-500.0,0.00023013,2]
[332464579,1721207498999,-500.0,0.00023013,2]
[332464580,1721207499009,-500.0,0.00023013,2]
[332464581,1721207499018,-500.0,0.00023013,2]
[332464582,1721207499027,-500.0,0.00023013,2]
[332464583,1721207499037,-500.0,0.00023013,2]
[332464584,1721207499046,-500.0,0.00023013,2]
[332464585,1721207499058,-500.0,0.00023013,2]
[332464586,1721207499068,-248.77,0.00023013,2]
[332464587,1721207499077,-398.53,0.00023013,2]
[332464588,1721207499086,-500.0,0.00023013,2]
[332464589,1721207499095,-372.58657601,0.00023013,2]
[332464590,1721207499105,-531.02602835,0.00023013,2]
[332464591,1721207499115,-500.0,0.00023013,2]
[332464592,1721207499124,-500.0,0.00023013,2]
[332464593,1721207499134,-500.0,0.00023013,2]
[332464594,1721207499143,-300.63942479,0.00023013,2]
[332464595,1721207499153,-500.0,0.00023013,2]
[332464596,1721207499163,-500.0,0.00023013,2]
[332464597,1721207499172,-500.0,0.00023013,2]
[332464598,1721207499182,-500.0,0.00023013,2]
[332464599,1721207499193,-2000.0,0.00023013,2]
[332464600,1721207499203,-500.0,0.00023013,2]
[332464601,1721207499216,-500.0,0.00023013,2]
[332464602,1721207499228,-500.0,0.00023013,2]
[332464603,1721207499238,-372.03,0.00023013,2]
[332464604,1721207499249,-500.0,0.00023013,2]
[332464605,1721207499259,-500.0,0.00023013,2]
[332464606,1721207499268,-736.18,0.00023013,2]
[332464607,1721207499278,-297.16,0.00023013,2]
[332464608,1721207499287,-500.0,0.00023013,2]
[332464609,1721207499297,-636.90766553,0.00023013,2]
[332464610,1721207499309,-500.0,0.00023013,2]
[332464611,1721207499318,-500.0,0.00023013,2]
[332464612,1721207499328,-500.0,0.00023013,2]
[332464613,1721207499337,-500.0,0.00023013,2]
[332464614,1721207499347,-500.0,0.00023013,2]
[332464615,1721207499356,-500.0,0.00023013,2]
[332464616,1721207499366,-500.0,0.00023013,2]
[332464617,1721207499377,-500.0,0.00023013,2]
[332464618,1721207499388,-561.9509239,0.00023013,2]
[332464619,1721207499398,-500.0,0.00023013,2]
[332464620,1721207499408,-500.0,0.00023013,2]
[332464621,1721207499418,-500.0,0.00023013,2]
[332464622,1721207499428,-500.0,0.00023013,2]
[332464623,1721207499437,-500.0,0.00023013,2]
[332464624,1721207499447,-500.0,0.00023013,2]
[332464625,1721207499457,-500.0,0.00023013,2]
[332464626,1721207499467,-500.0,0.00023013,2]
[332464627,1721207499476,-500.0,0.00023013,2]
[332464628,1721207499486,-500.0,0.00023013,2]
[332464629,1721207499495,-500.0,0.00023013,2]
[332464630,1721207499505,-500.0,0.00023013,2]
[332464631,1721207499514,-500.0,0.00023013,2]
[332464632,1721207499524,-711.61,0.00023013,2]
[332464633,1721207499533,-500.0,0.00023013,2]
[332464634,1721207499542,-575.26545851,0.00023013,2]
[332464635,1721207499553,-500.0,0.00023013,2]
[332464636,1721207499562,-500.0,0.00023013,2]
[332464637,1721207499571,-500.0,0.00023013,2]
[332464638,1721207499581,-687.19,0.00023013,2]
[332464639,1721207499590,-500.0,0.00023013,2]
[332464640,1721207499599,-500.0,0.00023013,2]
[332464641,1721207499609,-167.15,0.00023013,2]
[332464642,1721207499619,-500.0,0.00023013,2]
[332464643,1721207499629,-500.0,0.00023013,2]
[332464644,1721207499638,-500.0,0.00023013,2]
[332464645,1721207499648,-1287.17,0.00023013,2]
[332464646,1721207499657,-208.44,0.00023013,2]
[332464647,1721207499666,-540.06674061,0.00023013,2]
[332464648,1721207499676,-500.0,0.00023013,2]
[332464649,1721207499686,-500.0,0.00023013,2]
[332464650,1721207499695,-500.0,0.00023013,2]
[332464651,1721207499704,-500.0,0.00023013,2]
[332464652,1721207499714,-653.86,0.00023013,2]
[332464653,1721207499723,-500.0,0.00023013,2]
[332464654,1721207499732,-500.0,0.00023013,2]
[332464655,1721207499742,-311.41885475,0.00023013,2]
[332464656,1721207499753,-500.0,0.00023013,2]
[332464657,1721207499762,-500.0,0.00023013,2]
[332464658,1721207499772,-500.0,0.00023013,2]
[332464659,1721207499782,-500.0,0.00023013,2]
[332464660,1721207499791,-500.0,0.00023013,2]
[332464661,1721207499803,-500.0,0.00023013,2]
[332464662,1721207499812,-500.0,0.00023013,2]
[332464663,1721207499825,-500.0,0.00023013,2]
[332464664,1721207499833,-500.0,0.00023013,2]
[332464665,1721207499843,-500.0,0.00023013,2]
[332464666,1721207499853,-500.0,0.00023013,2]
[332464667,1721207499863,-500.0,0.00023013,2]
[332464668,1721207499872,-500.0,0.00023013,2]
[332464669,1721207499882,-948.07,0.00023013,2]
[332464670,1721207499891,-500.0,0.00023013,2]
[332464671,1721207499901,-695.04,0.00023013,2]
[332464672,1721207499910,-500.0,0.00023013,2]
[332464673,1721207499920,-500.0,0.00023013,2]
[332464674,1721207499931,-634.9,0.00023013,2]
[332464675,1721207499942,-632.72487901,0.00023013,2]
[332464676,1721207499952,-1106.12,0.00023013,2]
[332464677,1721207499962,-776.07,0.00023013,2]
[332464678,1721207499971,-500.0,0.00023013,2]